Cogmind - Beta 13 @@@ ROGUE MODE // 2024.04.26 @ 22:43:59 Player: orthostice Result: Destroyed by G-47 Trooper with Particle Gun Performance ------------- Evolutions (2) 1000 Regions Visited (3) 600 Robots Destroyed (50) 250 Value Destroyed (1303) 1303 Prototype IDs (2) 40 Alien Tech Used (0) 0 Bonus (0) 0 TOTAL SCORE: 3193 Bonus ------- None Cogmind --------- Core Integrity 0/550 Matter 171/300 Energy 100/100 System Corruption 0% Temperature Cool (9) Movement Walking (610) Ox7 Location -8/Materials Parts ------- > --- POWER (2) -------- (None) > --- PROPULSION (3) --- Aluminum Leg > --- UTILITY (3) ------ Huge Storage Unit Core Analyzer > --- WEAPON (3) ------- (None) > --- INVENTORY (25) --- Light Ion Engine Improved Heat Sink Structural Scanner Light Armor Plating Peak State ------------ > --- POWER ------------ Light Ion Engine Light Ion Engine > --- PROPULSION ------- Light Treads Light Treads Light Treads > --- UTILITY ---------- Huge Storage Unit High-capacity Matter Pod Core Analyzer > --- WEAPON ----------- Heavy Assault Rifle Autogun Mini Grenade Launcher > --- INVENTORY -------- Light Ion Engine Improved Ion Engine Light Treads Light Treads Light Treads Light Treads Aluminum Leg Aluminum Leg Structural Scanner Light Armor Plating EM Pulse Gun Improved EM Shotgun Improved EM Shotgun Improved EM Shotgun Improved EM Shotgun Medium Laser Assault Rifle Light Assault Rifle Autogun Autogun [Rating: 20] Favorites ----------- Power Ion Engine Engine Ion Engine Propulsion Light Treads Treads Light Treads Leg Aluminum Leg Utility High-capacity Matter Pod Storage High-capacity Matter Pod Processor Core Analyzer Protection Light Armor Plating Weapon Autogun Energy Gun Medium Laser Ballistic Gun Autogun Launcher Mini Grenade Launcher Build | -11 -10 -9 -8 ------- Run | Yrd Mat Mat Mat Slots Evolved 4 | . . 2 2 Power 1 | . . . 1 Propulsion 1 | . . . 1 Utility 1 | . . 1 . Weapon 1 | . . 1 . Parts Attached 45 | 6 7 8 24 Power 4 | 1 . 1 2 Engine 4 | 1 . 1 2 Core . | . . . . Reactor . | . . . . Propulsion 16 | 2 2 4 8 Treads 14 | 2 2 4 6 Leg 2 | . . . 2 Wheel . | . . . . Hover . | . . . . Flight . | . . . . Utility 5 | 1 2 1 1 Device . | . . . . Storage 3 | 1 2 . . Processor 1 | . . . 1 Hackware . | . . . . Protection 1 | . . 1 . Artifact . | . . . . Weapon 20 | 2 3 2 13 Energy Gun 8 | 2 . . 6 Energy Cannon . | . . . . Ballistic Gun 9 | . 2 1 6 Ballistic Cannon . | . . . . Launcher 3 | . 1 1 1 Special Weapon . | . . . . Impact Weapon . | . . . . Slashing Weapon . | . . . . Piercing Weapon . | . . . . Special Melee Weapon . | . . . . Unidentified Prototypes 2 | . . . 2 Parts Lost 26 | . 1 1 24 Power 4 | . . 1 3 Propulsion 8 | . . . 8 Utility 1 | . . . 1 Weapon 13 | . 1 . 12 Highest Loss Streak 13 | . 1 1 13 To Critical Strikes 1 | . . . 1 Average Slot Usage (%) 91 | . 99 95 76 Engine 10 | . 14 9 9 Treads 21 | . 28 22 16 Storage 22 | . 27 22 17 Processor 1 | . . . 6 Protection 4 | . . 8 2 Energy Gun 2 | . 3 . 6 Ballistic Gun 19 | . 15 25 11 Launcher 6 | . 9 7 4 Naked Turns . | . . . . Heaviest Build 100 | 14 95 100 99 Greatest Support 60 | 40 40 40 60 Greatest Overweight (x) 32 | 3 2 2 32 Average Overweight (x) 1 | . 1 2 2 Largest Inventory Capacity 25 | 8 25 25 25 Average Capacity 22 | 7 19 25 25 Most Carried 22 | 6 9 20 22 Average Carried 10 | 3 7 11 15 Final Capacity 25 | 8 25 25 25 Final Carried 20 | 6 8 20 4 Class Distribution -------------------- 40% | Tank 34% | Mutant 18% | Gunner 6% | Scavenger-Gunner Dominant Class ---------------- Mutant | -10/Materials Tank | -9/Materials Gunner | -8/Materials Resources | -11 -10 -9 -8 ----------- Run | Yrd Mat Mat Mat Matter Collected 1149 | 190 230 454 275 Remotely . | . . . . Salvage Created 1303 | . 294 605 404 Parts 109 | . 33 58 18 Haulers Intercepted 2 | . . 1 1 Recyclers Shooed 2 | . 1 . 1 Parts Field Recycled . | . . . . Retrieved Matter . | . . . . Parts Self-Destructed . | . . . . Prevented . | . . . . Kills | -11 -10 -9 -8 ------- Run | Yrd Mat Mat Mat Combat Hostiles Destroyed 33 | . 10 14 9 Melee 1 | . . . 1 Guns 18 | . 2 11 5 AOE 14 | . 8 3 3 Classes Destroyed 10 | . 5 5 . Worker 2 | . 1 1 . Builder 6 | . 4 1 1 Hauler 2 | . . 1 1 Recycler 2 | . . 1 1 Operator 1 | . . 1 . Watcher 4 | . 1 3 . Swarmer 7 | . 3 4 . Grunt 18 | . 7 5 6 Duelist 1 | . . 1 . Sentry 7 | . . 4 3 Best Kill Streak 7 | . 5 7 7 Combat Bots Only 5 | . 3 5 4 Max Kills in Single Turn 3 | . 2 3 2 Gunslinging 1 | . . 1 . Exploded 2 | . 2 1 1 Melee 1 | . . . 1 Uniques/NPCs Destroyed . | . . . . Combat | -11 -10 -9 -8 -------- Run | Yrd Mat Mat Mat Hostile Shots Fired 324 | . 54 58 212 Missed 89 | . 15 20 54 Damage Taken 3719 | . 514 577 2628 Core 740 | . 92 91 557 Absorbed by Shields . | . . . . Regen/Repaired (Parts) 108 | . 108 . . Core Remaining (%) 80 | 100 63 77 . Volleys Fired 91 | . 25 28 38 Largest 3 | . 2 3 3 Hottest 140 | . 53 76 140 Shots Fired 187 | . 35 71 81 Gun 156 | . 20 65 71 Cannon . | . . . . Launcher 31 | . 15 6 10 Special . | . . . . Kinetic 132 | . 17 65 50 Thermal 10 | . 3 . 7 Explosive 31 | . 15 6 10 Electromagnetic 14 | . . . 14 Robot Hit Streak 15 | . 8 8 15 Robot Miss Streak 4 | . 2 3 4 Penetration Max . | . . . . Secondary Targets 6 | . 1 2 3 Max Gunslinging Chain 1 | . 1 1 1 Shots Hit Robots 113 | . 19 39 55 Core Hits 87 | . 22 33 32 Critical Kills . | . . . . Critical Parts Destroyed 2 | . 1 1 . Critical Strikes 2 | . 1 1 . Destroy 2 | . 1 1 . Melee Attacks . | . . . . Impact . | . . . . Slashing . | . . . . Piercing . | . . . . Sneak Attacks . | . . . . Combat Hostiles . | . . . . Follow-up Attacks . | . . . . Damage Inflicted 3595 | . 984 1347 1264 Guns 1492 | . 193 632 667 Cannons . | . . . . Explosions 2085 | . 791 715 579 Melee . | . . . . Ramming 18 | . . . 18 Kinetic 1296 | . 169 632 495 Thermal 86 | . 24 . 62 Explosive 2085 | . 791 715 579 Electromagnetic 110 | . . . 110 Impact . | . . . . Slashing . | . . . . Piercing . | . . . . Highest Corruption . | . . . . Average Corruption . | . . . . Corruption Purged . | . . . . Corruption Blocked . | . . . . Overload Shots . | . . . . Overflow Damage 27 | . 10 11 6 Projectiles . | . . . . Explosions 27 | . 10 11 6 Melee . | . . . . Knockbacks . | . . . . Impact . | . . . . Kinetic . | . . . . Secondary . | . . . . Self-Inflicted Damage 338 | . 114 67 157 Shots 11 | . 4 2 5 Rammed . | . . . . Targets Rammed 6 | . . . 6 Kicked 5 | . . . 5 Crushed 1 | . . . 1 Highest Temperature 377 | . 39 135 377 Average Temperature 72 | . 14 38 114 Received Heat Transfer 1722 | . 144 120 1458 Effects 4 | . . . 4 Shutdowns 1 | . . . 1 Interference 3 | . . . 3 Siege Activations . | . . . . Robots Corrupted . | . . . . Combat Hostiles . | . . . . Parts Fried . | . . . . Impact Corruptions . | . . . . Robots Melted . | . . . . Combat Hostiles . | . . . . Parts Melted . | . . . . Heat Transferred 259 | . 74 . 185 Parts Sabotaged . | . . . . Parts Stolen . | . . . . Parts Stripped . | . . . . Power Chain Reactions . | . . . . Alert | -11 -10 -9 -8 ------- Run | Yrd Mat Mat Mat Peak Influence 357 | . 356 231 357 Initial 68 | . . 65 68 Average 139 | . 181 120 181 Maximum Alert Level 1 | . 1 1 1 Low Security (%) 79 | 100 76 84 65 Level 1 20 | . 23 15 34 Level 2 . | . . . . Level 3 . | . . . . Level 4 . | . . . . Level 5 . | . . . . High Security . | . . . . Max Security . | . . . . Squads Dispatched 4 | . 2 . 2 Investigation 2 | . 2 . . Extermination . | . . . . Reinforcement 2 | . . . 2 Assault . | . . . . Garrison . | . . . . Intercept . | . . . . Searches Triggered . | . . . . Construction Impeded 1 | . . . 1 Haulers Reinforced . | . . . . Active Scanning Responses . | . . . . Cargo Convoy Interrupts . | . . . . Stealth | -11 -10 -9 -8 --------- Run | Yrd Mat Mat Mat Distress Signals 3 | . . 3 . Communications Jammed . | . . . . Distress Signals . | . . . . Times Spotted 43 | . 11 19 13 Peak Tracking Total 6 | . 3 6 6 Tactical Retreats 1 | . . . 1 Traps | -11 -10 -9 -8 ------- Run | Yrd Mat Mat Mat Traps Triggered 2 | . 2 . . Indirectly . | . . . . Trap Hack Attempts . | . . . . Triggered . | . . . . Disarmed . | . . . . Reprogrammed . | . . . . Reused . | . . . . Traps Extracted . | . . . . Installed . | . . . . Triggered . | . . . . Machines | -11 -10 -9 -8 ---------- Run | Yrd Mat Mat Mat Machines Disabled 4 | . . . 4 Max in Single Turn 2 | . . . 2 Machines Repaired . | . . . . Machines Dismantled . | . . . . Machines Sabotaged . | . . . . Overloaded Fab Kills . | . . . . Hacking | -11 -10 -9 -8 --------- Run | Yrd Mat Mat Mat Machines Accessed 4 | . 1 3 . Terminals 2 | . . 2 . Fabricators . | . . . . Repair Stations 1 | . 1 . . Recycling Units 1 | . . 1 . Scanalyzers . | . . . . Garrison Access . | . . . . Total Hacks 5 | . 2 3 . Successful 3 | . 2 1 . Failed 2 | . . 2 . Catastrophic . | . . . . Database Lockouts . | . . . . Manual . | . . . . Terminals 2 | . . 2 . Fabricators . | . . . . Repair Stations 2 | . 2 . . Recycling Units 1 | . . 1 . Scanalyzers . | . . . . Garrison Access . | . . . . Terminal Hacks 1 | . . 1 . Record 1 | . . 1 . Fabricator Hacks . | . . . . Repair Station Hacks 2 | . 2 . . Scan Component 1 | . 1 . . Repair 1 | . 1 . . Recycling Unit Hacks . | . . . . Scanalyzer . | . . . . Garrison Access Hacks . | . . . . Unauthorized Hacks . | . . . . Terminals . | . . . . Fabricators . | . . . . Repair Stations . | . . . . Recycling Units . | . . . . Scanalyzers . | . . . . Garrison Access . | . . . . Data Cores Recovered . | . . . . Used . | . . . . Hacking Detections . | . . . . Full Trace Events . | . . . . Feedback Events . | . . . . Feedback Blocked . | . . . . Robot Schematics Acquired . | . . . . Robots Built . | . . . . Authchips . | . . . . Time . | . . . . Total Robot Build Rating . | . . . . Part Schematics Acquired . | . . . . Parts Built . | . . . . Authchips . | . . . . Time . | . . . . Total Part Build Rating . | . . . . Parts Repaired 1 | . 1 . . Time 26 | . 26 . . Parts Recycled . | . . . . Recycled Matter . | . . . . Retrieved Matter . | . . . . Retrieved Components . | . . . . Parts Scanalyzed . | . . . . Part Schematics Acquired . | . . . . Parts Damaged . | . . . . Bothacking | -11 -10 -9 -8 ------------ Run | Yrd Mat Mat Mat Used RIF Installer . | . . . . Robots Hacked . | . . . . Non-combat . | . . . . Combat . | . . . . Robot Hacks Applied . | . . . . Relay Couplers Released . | . . . . Fabnet Peak Effective % . | . . . . Robots Rewired . | . . . . Allies Hacked . | . . . . Hacks Repelled . | . . . . Allies | -11 -10 -9 -8 -------- Run | Yrd Mat Mat Mat Total Allies . | . . . . Largest Group . | . . . . Highest-Rated Group . | . . . . Highest-Rated Ally . | . . . . Total Orders . | . . . . Ally Attacks . | . . . . Total Damage . | . . . . Kills . | . . . . Allies Corrupted . | . . . . Allies Melted . | . . . . Intel | -11 -10 -9 -8 ------- Run | Yrd Mat Mat Mat Robot Analysis Total . | . . . . Derelict Logs Recovered . | . . . . Drone Launches . | . . . . Drone Recoveries . | . . . . Exploration | -11 -10 -9 -8 ------------- Run | Yrd Mat Mat Mat Turns Passed 2159 | 175 496 984 504 Spaces Moved 655 | 103 173 275 104 Core 14 | 11 . . 3 Treads 639 | 92 173 275 99 Legs 2 | . . . 2 Wheels . | . . . . Hover . | . . . . Flight . | . . . . Fastest Speed 50 | 50 160 320 240 Average Speed 275 | 156 245 320 327 Slowest Speed 1650 | 200 320 320 1650 Overloaded Moves . | . . . . Propulsion Burnouts . | . . . . Robots Hopped . | . . . . Cave-ins Triggered . | . . . . Exploration Rate (%) 18 | 6 33 24 11 Regions Visited 3 Branch Regions . Pre-discovered Areas . | . . . . Known Exits Taken . | . . . . Unknown Exits Taken 3 | 1 1 1 . Scrap Searched . | . . . . Spaces Dug . | . . . . Terrain Destroyed 208 | . 63 53 92 Melee . | . . . . Projectile . | . . . . AOE 208 | . 63 53 92 Terrain Rammed . | . . . . Walls Destroyed . | . . . . Machines Disabled . | . . . . Actions | -11 -10 -9 -8 --------- Run | Yrd Mat Mat Mat Total 848 | 114 214 330 190 Wait 22 | . . 9 13 Move 652 | 102 172 274 104 Hop . | . . . . Pick Up 26 | 6 6 11 3 Fast Attach 7 | 6 1 . . Attach 25 | . 2 3 20 Detach . | . . . . Swap 13 | . 4 5 4 Drop 6 | . 4 . 2 Fire 91 | . 25 28 38 Melee . | . . . . Ram . | . . . . Kick 5 | . . . 5 Crush 1 | . . . 1 Escape Stasis . | . . . . Rewire . | . . . . Trap . | . . . . Miscellaneous . | . . . . Route ------- -11/Scrapyard -10/Materials -9/Materials (discovered 2 exits: [*Mat] / [*Min]) -8/Materials (discovered 1 exit: [*Sto]) History --------- Turn | Location | Event 23 | -11/Scrapyard | Discovered new exit (range 14) 176 | -11/Scrapyard | Entered Materials 308 | -10/Materials | Build established: Mutant 582 | -10/Materials | Repaired Lgt. Treads 649 | -10/Materials | Discovered new exit (range 6) 672 | -10/Materials | Entered another Materials area 672 | -9/Materials | Evolved 2 slots: Utility x1, Weapon x1 1194 | -9/Materials | Build established: Tank 1600 | -9/Materials | Discovered new exit (range 8) 1618 | -9/Materials | Discovered new exit (range 10) 1656 | -9/Materials | Entered another Materials area 1656 | -8/Materials | Evolved 2 slots: Power x1, Propulsion x1 1698 | -8/Materials | Discovered new exit (range 10) 2014 | -8/Materials | Lost 13 parts (2p4n7w) 2079 | -8/Materials | Core integrity fell below 50% 2125 | -8/Materials | Core integrity fell below 20% 2160 | -8/Materials | Destroyed by G-47 Trooper with Particle Gun Last Messages --------------- U-05 Engineer lays Concrete. Hcp. Matter Pod destroyed. Critical hit (Burn: +37). U-05 Engineer builds a Wall. U-05 Engineer lays Concrete. U-05 Engineer builds a Wall. Autogun destroyed. Core Analyzer broken. Faulty integration triggers power surge. Dropped Faulty Imp. EM Shotgun. Dropped Faulty Imp. Assault Rifle. Kicked G-47 Trooper. U-05 Engineer lays Concrete. U-05 Engineer builds a Wall. Kicked G-47 Trooper. G-47 Trooper destroyed. Acquired 20 matter. Critical hit (Burn: +37). Aluminum Leg destroyed. Kicked G-47 Trooper. Map ----- +----------------------------------------------------+ | ????????????????????????????????????? | | ????????????????????????????????????? | | ????????????????????????????????????? | | ########????????????????????????????? | | #]]//!!#????????????????????????????? | | #]]// !#????????????????????????????? | | # ###??????????????????????????? | | ?## ###??????????????????????????? | | ?# ##??????????????????????????? | | ?# ##??????????????????????????? | | ?## [< ##??????????????????????????? | | ?## ! ##??????????????????????????? | | ?## ##??????????????????????????? | | ?#### ####??????????????????????????? | | ?#### #?##???####+######+####???????? | | ????# #??????# #???????? | | ????# #??????# +???????? | | ????# #??????# #???????? | | ???## ######## ########## #???????? | | ???# #???????? #???????? | | ???# #??????? #???????? | | ???# #??????? ######??? | | ???# ##?????? ?? | | ???# ##?????? ?? | | ???# #?????! ??? | | ???# [[ @ ####?? ##???? | | ???####### g ### ### ##??? | | ?????# o # # # % [ #??? | | ?????# ##! #??? | | ?????# [ m = #??? | | ?????# ##### #??? | | ?????# k ########[ # #??? | | ?????## ##= = = ##??? | | ??????# ?# ##??? | | ??????# ?# " ## ###########???? | | ??????# ?# "" ### ??? | | ??????# ?# ##? ?? | | ?????? ?##+######??# ??? | | ?????# ? ????????? ########??? | | ?????+ T [ ????????? #?????????? | | ???? # ? ?????????? #?????????? | | ???? # ? ##?????????? #?????????? | | ??????????????????????? ?????????? | | ???????????????????????? ??????????? | | ????????????????????????????????????? | | ????????????????????????????????????? | | ????????????????????????????????????? | | ????????????????????????????????????? | | ????????????????????????????????????? | | ????????????????????????????????????? | +----------------------------------------------------+ Best States ------------- Heat Dissipation 31 Energy Generation 15 Energy Capacity 265 Matter Stores 296 Matter Capacity 500 Sight Range 16 Terrain Scan Density 10 Armor Coverage 150 Evasion (%) 40 Core Analysis 6 Recoil Reduction 3 Item Schematics ----------------- None Robot Schematics ------------------ None Fabricated ------------ Nothing Alien Tech Used ----------------- None Achievements -------------- None Challenges ------------ None Game ------ Seed ServoAssembledDetector Manual? 0 Play Time 00:19:55 Cumulative 3.8 hours Start 2024.04.26 @ 22:24:07 End 2024.04.26 @ 22:43:59 Sessions 1 Manual Loads 0 Difficulty Rogue Special Mode None Game No. 7 Rogue 7 Adventurer 0 Explorer 0 Win Type - Total 0 Types 0/0/0/0/0/0/0/0/0 Lore% 5 Gallery% 8 Achievement% 9 Wizard Run 0 Options --------- Layout 1 ASCII 0 Keyboard 0 Movement Vi Keybinds 0 Fullscreen 1 Font 32/SmallcapsGlow Map View 50x35 Zoom Use 0% Tactical HUD 0 Map Filters NONE Filters NONE Steam 1 RUN: 42abe5d9-1001-4a62-937f-602e322d4824